fUSD/lending_fUSD_20241221
["ID","MTS","AMOUNT","RATE_DAILY","PERIOD"]
[346247480,1734811845741,-722.18169566,0.0002,2]
[346247481,1734811845798,-74331.7406975,0.0002,2]
[346247482,1734811845809,-80098.67405,0.0002,2]
[346247483,1734811845853,-565.8647198,0.0002,2]
[346247484,1734811845866,-4621.18572037,0.0002,2]
[346247485,1734811845910,-676.0,0.0002,2]
[346247486,1734811845921,-377178.72914111,0.0002,2]
[346247487,1734811845967,-543.29612248,0.0002,2]
[346247493,1734811846466,-18273.57540634,0.0002,2]
[346247511,1734811933104,450.0,0.00013,2]
[346247512,1734812099351,-500.0,0.00015,2]
[346247513,1734812099372,-500.0,0.00017,2]
[346247514,1734812121074,-50.0,0.00017,2]
[346247515,1734812121096,-500.0,0.00017664,2]
[346247516,1734812121119,-600.0,0.00018,2]
[346247517,1734812121140,-600.0,0.00019,2]
[346247518,1734812121161,-250.0,0.00019064,2]
[346247519,1734812121183,-300.0,0.00019186,2]
[346247520,1734812121208,-150.0,0.00019729,2]
[346247521,1734812121229,-1650.0,0.00019756,2]
[346247522,1734812138425,-1275.3606,0.00019756,2]
[346247523,1734812138450,-198.34201269,0.00019773,2]
[346247524,1734812138473,-853.6367,0.00019778,2]
[346247525,1734812138498,-2804.66068731,0.0001978,2]
[346247532,1734812629703,151.21,0.00010137,2]
[346247533,1734812708512,247987.60526424,0.00013,2]
[346247539,1734812948165,-621.17772833,0.00016925,2]
[346247540,1734812960103,-29.12227167,0.00016925,2]
[346247541,1734812960124,-488.94492833,0.00017664,2]
[346247572,1734813031946,-11.05507167,0.00017664,2]
[346247573,1734813031956,-150.0,0.00018,2]
[346247574,1734813031966,-150.0,0.00018,2]
[346247575,1734813031977,-150.0,0.00018,2]
[346247576,1734813031986,-1000.0,0.00018404,2]
[346247577,1734813031995,-250.0,0.00018538,2]
[346247578,1734813032005,-4098.79,0.00018573,2]
[346247579,1734813032014,-250.0,0.00018579,2]
[346247580,1734813032023,-596.79,0.00018649,2]
[346247581,1734813032033,-175.09,0.00018802,2]
[346247582,1734813032042,-300.0,0.00018851,2]
[346247583,1734813032051,-4022.43495896,0.00018852,2]
[346247584,1734813032062,-1824.9000002,0.00018852,2]
[346247585,1734813032073,-513.38219973,0.00018852,2]
[346247586,1734813032085,-841.51999994,0.00018852,2]
[346247587,1734813032101,-796.7,0.00018852,2]
[346247588,1734813032112,-750.37477044,0.00018852,2]
[346247589,1734813032175,-4810.8848,0.00018852,2]
[346247590,1734813032186,-10339.80327073,0.00018852,2]
[346247591,1734813032196,-239.86,0.0001886,2]
[346247592,1734813032206,-35.33672927,0.00018878,2]
[346247593,1734813032218,-164.66327073,0.00018878,2]
[346247594,1734813032228,-250.0,0.0001897,2]
[346247595,1734813032237,-525.478,0.00019,2]
[346247596,1734813032246,-300.0,0.00019014,2]
[346247597,1734813032257,-436.91,0.00019041,2]
[346247598,1734813032266,-436.91,0.00019041,2]
[346247599,1734813032276,-150.91,0.00019116,30]
[346247615,1734813032492,-167.35,0.00019167,2]
[346247617,1734813032504,-150.0,0.00019178,2]
[346247619,1734813032513,-365.07,0.00019178,2]
[346247622,1734813032523,-150.0,0.00019178,2]
[346247623,1734813032533,-150.0,0.00019178,2]
[346247625,1734813032542,-150.0,0.00019178,2]
[346247627,1734813032551,-365.07,0.00019178,2]
[346247629,1734813032560,-150.0,0.00019178,2]
[346247631,1734813032569,-650.3,0.00019189,2]
[346247633,1734813032579,-5456.74655005,0.00019244,2]
[346247635,1734813032589,-5026.7,0.00019339,2]
[346247637,1734813032601,-1920.48605031,0.00019339,2]
[346247640,1734813032613,-8079.50394969,0.00019339,2]
[346247642,1734813032623,-150.99,0.00019339,2]
[346247644,1734813032632,-299.99,0.00019339,7]
[346247646,1734813032641,-7884.36,0.00019339,2]
[346247648,1734813032650,-999.99,0.00019339,2]
[346247650,1734813032659,-7255.74,0.00019339,2]
[346247652,1734813032669,-150.99,0.00019339,2]
[346247654,1734813032677,-300.01213788,0.00019656,2]
[346247656,1734813032686,-300.01213786,0.00019683,2]
[346247657,1734813032696,-39992.19197968,0.000197,2]
[346247659,1734813032705,-100000.0,0.000197,2]
[346247661,1734813032714,-300.01213786,0.0001971,2]
[346247663,1734813032723,-300.01213786,0.00019737,2]
[346247666,1734813032733,-917.82800123,0.00019755,2]
[346247667,1734813032743,-300.01213786,0.00019764,2]
[346247669,1734813032752,-917.82800114,0.00019771,2]
[346247671,1734813032761,-1210.81200461,0.0001978,2]
[346247673,1734813032770,-21927.63312275,0.0001978,2]
[346247674,1734813032779,-3035.224,0.0001978,2]
[346247676,1734813032788,-174.384,0.0001978,2]
[346247678,1734813032797,-917.82800114,0.00019787,2]
[346247679,1734813032807,-500.0,0.00019791,2]
[346247680,1734813032816,-500.0,0.00019791,2]
[346247681,1734813032826,-500.0,0.00019791,2]
[346247682,1734813032835,-500.0,0.00019791,2]
[346247683,1734813032847,-500.0,0.00019791,2]
[346247684,1734813032857,-500.0,0.00019791,2]
[346247685,1734813032866,-300.01213786,0.00019792,2]
[346247686,1734813032875,-974.69,0.00019798,2]
[346247687,1734813032886,-1316.62,0.00019798,2]
[346247688,1734813032895,-500.0,0.00019798,2]
[346247689,1734813032904,-1109.98,0.00019798,2]
[346247690,1734813032914,-500.0,0.00019798,2]
[346247691,1734813032924,-1362.29,0.00019798,2]
[346247692,1734813032934,-500.0,0.00019798,2]
[346247693,1734813032944,-1774.06,0.00019798,2]
[346247694,1734813032954,-2538.05,0.00019798,2]
[346247695,1734813032963,-1475.12,0.00019798,2]
[346247696,1734813032972,-1397.98,0.00019798,2]
[346247697,1734813032982,-1110.87,0.00019798,2]
[346247698,1734813032991,-1142.13,0.00019798,2]
[346247699,1734813033001,-1528.23,0.00019798,2]
[346247700,1734813033010,-602.58,0.00019798,2]
[346247701,1734813033019,-500.0,0.00019798,2]
[346247702,1734813033028,-531.94,0.00019798,2]
[346247703,1734813033037,-937.5,0.00019798,2]
[346247704,1734813033047,-2662.03,0.00019798,2]
[346247705,1734813033056,-500.0,0.00019798,2]
[346247706,1734813033066,-552.03,0.00019798,2]
[346247707,1734813033075,-500.0,0.00019798,2]
[346247708,1734813033085,-500.0,0.00019798,2]
[346247709,1734813033097,-383.25219286,0.00019798,2]
[346247710,1734813033107,-500.0,0.00019798,2]
[346247711,1734813033116,-500.0,0.00019798,2]
[346247712,1734813033125,-768.47,0.00019798,2]
[346247713,1734813033134,-3414.8654,0.00019799,2]
[346247714,1734813033144,-1358.0,0.000198,3]
[346247715,1734813033153,-1000.0,0.000198,2]
[346247716,1734813033166,-2091.04745,0.000198,2]
[346247717,1734813033175,-25618.60723017,0.000198,2]
[346247718,1734813033191,-452.6076,0.000198,2]
[346247719,1734813033203,-9526.08087881,0.000198,2]
[346247720,1734813033213,-917.82800114,0.00019803,2]
[346247721,1734813033222,-300.01213786,0.00019819,2]
[346247722,1734813033232,-917.82800114,0.00019819,2]
[346247723,1734813033242,-500.0,0.0001984,2]
[346247724,1734813033252,-300.01213786,0.00019846,2]
[346247725,1734813033262,-3005.00603443,0.0001985,3]
[346247726,1734813033271,-500.0,0.00019854,2]
[346247727,1734813033281,-500.0,0.00019854,2]
[346247728,1734813033291,-500.0,0.00019854,2]
[346247729,1734813033300,-500.0,0.00019854,2]
[346247730,1734813033310,-699.69,0.00019854,2]
[346247731,1734813033320,-288.672166,0.00019854,2]
[346247732,1734813033329,-500.0,0.00019854,2]
[346247733,1734813033340,-500.0,0.00019854,2]
[346247734,1734813033350,-500.0,0.00019854,2]
[346247735,1734813033360,-803.48,0.00019854,2]
[346247736,1734813033369,-500.0,0.00019854,2]
[346247737,1734813033378,-1120.44,0.00019854,2]
[346247738,1734813033388,-628.718942,0.00019854,2]
[346247739,1734813033398,-3142.57505571,0.00019854,2]
[346247740,1734813033410,-2823.29979983,0.00019854,2]
[346247741,1734813033419,-500.0,0.00019854,2]
[346247742,1734813033429,-335.02452017,0.00019854,2]
[346247743,1734813033440,-164.97547983,0.00019854,2]
[346247744,1734813033449,-699.68,0.00019854,2]
[346247745,1734813033458,-525.27,0.00019854,2]
[346247746,1734813033468,-1416.88,0.00019854,2]
[346247747,1734813033478,-710.15,0.00019854,2]
[346247748,1734813033487,-2253.45691873,0.00019854,2]
[346247749,1734813033499,-99.48308127,0.00019854,2]
[346247750,1734813033508,-500.0,0.00019854,2]
[346247751,1734813033517,-945.4,0.00019854,2]
[346247752,1734813033527,-631.76,0.00019854,2]
[346247753,1734813033536,-2265.41359373,0.00019854,2]
[346247754,1734813033804,-630.87640627,0.00019854,2]
[346247755,1734813033814,-2277.35,0.00019854,2]
[346247756,1734813033824,-424.46071853,0.00019854,2]
[346247757,1734813033836,-3034.30928147,0.00019854,2]
[346247758,1734813033849,-708.17,0.00019854,2]
[346247759,1734813033859,-500.0,0.00019854,2]
[346247760,1734813033869,-500.0,0.00019854,2]
[346247761,1734813033879,-2155.13069773,0.00019854,2]
[346247762,1734813033891,-653.69930227,0.00019854,2]
[346247763,1734813033901,-500.0,0.00019854,2]
[346247764,1734813033912,-90.45604773,0.00019854,2]
[346247765,1734813033924,-510.22395227,0.00019854,2]
[346247766,1734813033934,-201.23590231,0.00019855,2]
[346247767,1734813033944,-230.912828,0.00019855,2]
[346247768,1734813033953,-214.31012071,0.00019855,2]
[346247769,1734813033965,-285.68987929,0.00019855,2]
[346247770,1734813033975,-94.31012071,0.00019855,2]
[346247771,1734813033991,-405.68987929,0.00019855,2]
[346247772,1734813034001,-509.85,0.00019855,2]
[346247773,1734813034011,-180.56490419,0.00019855,2]
[346247774,1734813034023,-319.43509581,0.00019855,2]
[346247775,1734813034032,-499.80980142,0.00019855,2]
[346247776,1734813034042,-278.7086228,0.00019855,2]
[346247777,1734813034055,-221.2913772,0.00019855,2]
[346247778,1734813034065,-475.06450104,0.00019855,2]
[346247779,1734813034333,-24.93549896,0.00019855,2]
[346247780,1734813034343,-25.95532924,0.00019855,2]
[346247781,1734813034355,-474.04467076,0.00019855,2]
[346247782,1734813034364,-500.0,0.00019855,2]
[346247783,1734813034374,-160.77320266,0.00019855,2]
[346247784,1734813034383,-500.0,0.00019855,2]
[346247785,1734813034392,-500.0,0.00019855,2]
[346247786,1734813034402,-500.0,0.00019855,2]
[346247787,1734813034412,-500.0,0.00019855,2]
[346247788,1734813034421,-500.0,0.00019855,2]
[346247789,1734813034431,-500.0,0.00019855,2]
[346247790,1734813034440,-500.0,0.00019855,2]
[346247791,1734813034450,-500.0,0.00019855,2]
[346247792,1734813034459,-451.06804331,0.00019855,2]
[346247793,1734813034469,-394.54587891,0.00019855,2]
[346247794,1734813034482,-105.45412109,0.00019855,2]
[346247795,1734813034491,-500.0,0.00019855,2]
[346247796,1734813034501,-500.0,0.00019855,2]
[346247797,1734813034511,-500.0,0.00019855,2]
[346247798,1734813034520,-98.15691136,0.00019855,2]
[346247803,1734813037907,-500.0,0.00019791,2]
[346247804,1734813037917,-500.0,0.00019791,2]
[346247805,1734813037927,-500.0,0.00019791,2]
[346247806,1734813037936,-500.0,0.00019798,2]
[346247807,1734813037945,-917.82800114,0.00019836,2]
[346247808,1734813037954,-401.84308864,0.00019855,2]
[346247809,1734813037964,-500.0,0.00019855,2]
[346247810,1734813037978,-500.0,0.00019855,2]
[346247811,1734813037987,-500.0,0.00019855,2]
[346247812,1734813037996,-500.0,0.00019855,2]
[346247813,1734813038005,-500.0,0.00019855,2]
[346247814,1734813038015,-500.0,0.00019855,2]
[346247815,1734813038024,-500.0,0.00019855,2]
[346247816,1734813038033,-500.0,0.00019855,2]
[346247817,1734813038043,-500.0,0.00019855,2]
[346247818,1734813038052,-500.0,0.00019855,2]
[346247819,1734813038062,-500.0,0.00019855,2]
[346247820,1734813038071,-500.0,0.00019855,2]
[346247821,1734813038080,-500.0,0.00019855,2]
[346247822,1734813038089,-500.0,0.00019855,2]
[346247823,1734813038100,-500.0,0.00019855,2]
[346247824,1734813038109,-500.0,0.00019855,2]
[346247825,1734813038118,-500.0,0.00019855,2]
[346247826,1734813038128,-500.0,0.00019855,2]
[346247827,1734813038137,-500.0,0.00019855,2]
[346247828,1734813038146,-500.0,0.00019855,2]
[346247829,1734813038155,-500.0,0.00019855,2]
[346247830,1734813038168,-500.0,0.00019855,2]
[346247831,1734813038177,-500.0,0.00019855,2]
[346247833,1734813038186,-500.0,0.00019855,2]
[346247834,1734813038195,-500.0,0.00019855,2]
[346247835,1734813038205,-520.78040443,0.00019855,2]
[346247836,1734813038214,-500.0,0.00019855,2]
[346247837,1734813038223,-500.0,0.00019855,2]
[346247838,1734813038233,-500.0,0.00019855,2]
[346247839,1734813038242,-500.0,0.00019855,2]
[346247840,1734813038251,-500.0,0.00019855,2]
[346247841,1734813038261,-556.98,0.00019855,2]
[346247842,1734813038270,-500.0,0.00019855,2]
[346247843,1734813038279,-500.0,0.00019855,2]
[346247844,1734813038288,-500.0,0.00019855,2]
[346247845,1734813038298,-508.41,0.00019855,2]
[346247846,1734813038307,-500.0,0.00019855,2]
[346247847,1734813038316,-500.0,0.00019855,2]
[346247848,1734813038325,-500.0,0.00019855,2]
[346247849,1734813038335,-500.0,0.00019855,2]
[346247850,1734813038346,-500.0,0.00019855,2]
[346247851,1734813038355,-500.0,0.00019855,2]
[346247852,1734813038365,-500.0,0.00019855,2]
[346247853,1734813038374,-500.0,0.00019855,2]
[346247854,1734813038383,-500.0,0.00019855,2]
[346247856,1734813038392,-501.56158796,0.00019855,2]
[346247858,1734813038401,-500.0,0.00019855,2]
[346247860,1734813038410,-500.0,0.00019855,2]
[346247862,1734813038419,-500.0,0.00019855,2]
[346247863,1734813038428,-500.0,0.00019855,2]
[346247864,1734813038438,-82.27174502,0.00019855,2]
[346247865,1734813038451,-117.72825498,0.00019855,2]
[346247866,1734813038460,-500.0,0.00019855,2]
[346247867,1734813038470,-500.0,0.00019855,2]
[346247868,1734813038479,-500.0,0.00019855,2]
[346247869,1734813038488,-500.0,0.00019855,2]
[346247870,1734813038497,-500.0,0.00019855,2]
[346247871,1734813038519,-502.51178229,0.00019855,2]
[346247872,1734813038528,-500.0,0.00019855,2]
[346247873,1734813038536,-501.25364909,0.00019855,2]
[346247874,1734813038546,-500.0,0.00019855,2]
[346247875,1734813038554,-594.19999446,0.00019855,2]
[346247876,1734813038563,-500.0,0.00019855,2]
[346247877,1734813038572,-500.0,0.00019855,2]
[346247878,1734813038582,-500.0,0.00019855,2]
[346247879,1734813038591,-500.0,0.00019855,2]
[346247880,1734813038773,-500.0,0.00019855,2]
[346247881,1734813038783,-500.0,0.00019855,2]
[346247882,1734813038792,-500.0,0.00019855,2]
[346247883,1734813038802,-500.0,0.00019855,2]
[346247884,1734813038811,-270.00627548,0.00019855,2]
[346247885,1734813038832,-260.38937336,0.00019855,2]
[346247886,1734813038841,-500.0,0.00019855,2]
[346247887,1734813038851,-616.66,0.00019855,2]
[346247888,1734813038860,-500.0,0.00019855,2]
[346247889,1734813038869,-500.0,0.00019855,2]
[346247890,1734813038878,-500.0,0.00019855,2]
[346247891,1734813038887,-501.12999127,0.00019855,2]
[346247892,1734813038896,-500.0,0.00019855,2]
[346247893,1734813038905,-121.82063537,0.00019855,2]
[346247900,1734813040037,-378.17936463,0.00019855,2]
[346247901,1734813040048,-500.0,0.00019855,2]
[346247902,1734813040062,-500.0,0.00019855,2]
[346247903,1734813040073,-600.6,0.00019855,2]
[346247904,1734813040084,-500.0,0.00019855,2]
[346247905,1734813040101,-500.0,0.00019855,2]
[346247906,1734813040112,-500.0,0.00019855,2]
[346247907,1734813040123,-500.0,0.00019855,2]
[346247908,1734813040133,-500.63018315,0.00019855,2]
[346247909,1734813040144,-398.87769102,0.00019855,2]
[346247910,1734813040156,-500.0,0.00019855,2]
[346247911,1734813040168,-500.0,0.00019855,2]
[346247912,1734813040178,-500.0,0.00019855,2]
[346247913,1734813040188,-500.0,0.00019855,2]
[346247914,1734813040198,-500.0,0.00019855,2]
[346247915,1734813040209,-500.0,0.00019855,2]
[346247916,1734813040218,-500.0,0.00019855,2]
[346247917,1734813040228,-524.78,0.00019855,2]
[346247918,1734813040237,-500.0,0.00019855,2]
[346247919,1734813040249,-500.0,0.00019855,2]
[346247920,1734813040260,-121.25346259,0.00019855,2]
[346247921,1734813040272,-311.91653741,0.00019855,2]
[346247922,1734813040281,-500.0,0.00019855,2]
[346247923,1734813040291,-199.88564269,0.00019855,2]
[346247924,1734813040300,-500.0,0.00019855,2]
[346247925,1734813040309,-500.0,0.00019855,2]
[346247926,1734813040318,-500.0,0.00019855,2]
[346247927,1734813040328,-500.0,0.00019855,2]
[346247928,1734813040337,-336.25407897,0.00019855,2]
[346247929,1734813040349,-360.77189647,0.00019855,2]
[346247930,1734813040359,-434.48669797,0.00019855,2]
[346247931,1734813040368,-193.87306501,0.00019855,2]
[346247932,1734813040377,-325.06518439,0.00019855,2]
[346247933,1734813040422,-917.82800114,0.00019852,2]
[346247934,1734813040431,-174.93481561,0.00019855,2]
[346247935,1734813040440,-266.00093318,0.00019855,2]
[346247936,1734813040449,-500.0,0.00019855,2]
[346247937,1734813040458,-500.0,0.00019855,2]
[346247938,1734813040467,-500.0,0.00019855,2]
[346247939,1734813040476,-239.87463064,0.00019855,2]
[346247940,1734813040488,-260.12536936,0.00019855,2]
[346247941,1734813040497,-78.49885431,0.00019855,2]
[346247978,1734813044067,-365.07,0.00019178,2]
[346247980,1734813044077,-150.0,0.00019178,2]
[346247981,1734813044087,-500.0,0.00019791,2]
[346247982,1734813044101,-421.50114569,0.00019855,2]
[346247983,1734813044113,-361.66189413,0.00019855,2]
[346247984,1734813044129,-138.33810587,0.00019855,2]
[346247985,1734813044141,-355.95394453,0.00019855,2]
[346247986,1734813045691,-10000.0,0.0002,60]
[346247989,1734813053438,-436.91,0.00019041,2]
[346247990,1734813053447,-150.0,0.00019178,2]
[346247991,1734813053456,-500.0,0.00019791,2]
[346247992,1734813053466,-144.04605547,0.00019855,2]
[346247993,1734813053475,-500.0,0.00019855,2]
[346247994,1734813053484,-500.0,0.00019855,2]
[346247995,1734813053494,-500.0,0.00019855,2]
[346247996,1734813053503,-500.0,0.00019855,2]
[346247997,1734813053513,-500.0,0.00019855,2]
[346247998,1734813053522,-500.0,0.00019855,2]
[346247999,1734813053532,-500.0,0.00019855,2]
[346248000,1734813053542,-500.0,0.00019855,2]
[346248001,1734813053551,-500.0,0.00019855,2]
[346248002,1734813053561,-500.0,0.00019855,2]
[346248003,1734813053570,-500.0,0.00019855,2]
[346248004,1734813053580,-500.0,0.00019855,2]
[346248005,1734813053589,-500.0,0.00019855,2]
[346248006,1734813053598,-500.0,0.00019855,2]
[346248007,1734813053610,-500.0,0.00019855,2]
[346248008,1734813053619,-617.43046055,0.00019855,2]
[346248009,1734813053628,-500.0,0.00019855,2]
[346248010,1734813053637,-500.0,0.00019855,2]
[346248011,1734813053647,-500.0,0.00019855,2]
[346248012,1734813053656,-500.0,0.00019855,2]
[346248013,1734813053666,-500.0,0.00019855,2]
[346248014,1734813053675,-500.0,0.00019855,2]
[346248015,1734813053684,-500.0,0.00019855,2]
[346248016,1734813053694,-500.0,0.00019855,2]
[346248017,1734813053703,-500.0,0.00019855,2]
[346248018,1734813053713,-500.0,0.00019855,2]
[346248019,1734813053722,-500.0,0.00019855,2]
[346248020,1734813053732,-500.0,0.00019855,2]
[346248021,1734813053741,-500.0,0.00019855,2]
[346248022,1734813053751,-500.0,0.00019855,2]
[346248023,1734813053759,-500.0,0.00019855,2]
[346248024,1734813053769,-537.0,0.00019855,2]
[346248025,1734813053778,-630.82,0.00019855,2]
[346248026,1734813053787,-507.82216895,0.00019855,2]
[346248027,1734813053796,-500.0,0.00019855,2]
[346248028,1734813053807,-609.9,0.00019855,2]
[346248029,1734813053817,-500.0,0.00019855,2]
[346248030,1734813053826,-500.0,0.00019855,2]
[346248031,1734813053836,-500.0,0.00019855,2]
[346248032,1734813053845,-500.0,0.00019855,2]
[346248033,1734813053854,-500.0,0.00019855,2]
[346248034,1734813053864,-500.0,0.00019855,2]
[346248035,1734813053873,-500.0,0.00019855,2]
[346248036,1734813053883,-500.0,0.00019855,2]
[346248037,1734813053892,-500.0,0.00019855,2]
[346248038,1734813053902,-500.0,0.00019855,2]
[346248039,1734813053911,-319.50151031,0.00019855,2]
[346248040,1734813053920,-500.0,0.00019855,2]
[346248041,1734813053930,-500.0,0.00019855,2]
[346248042,1734813053939,-500.0,0.00019855,2]
[346248043,1734813053948,-500.0,0.00019855,2]
[346248044,1734813053957,-500.0,0.00019855,2]
[346248045,1734813053966,-500.0,0.00019855,2]
[346248046,1734813053976,-500.0,0.00019855,2]
[346248047,1734813053985,-500.0,0.00019855,2]
[346248048,1734813053995,-500.0,0.00019855,2]
[346248049,1734813054004,-500.0,0.00019855,2]
[346248050,1734813054013,-500.0,0.00019855,2]
[346248051,1734813054023,-505.11,0.00019855,2]
[346248052,1734813054032,-500.0,0.00019855,2]
[346248053,1734813054041,-500.0,0.00019855,2]
[346248054,1734813054050,-500.0,0.00019855,2]
[346248055,1734813054059,-500.0,0.00019855,2]
[346248056,1734813054068,-500.0,0.00019855,2]
[346248057,1734813054078,-500.0,0.00019855,2]
[346248058,1734813054087,-500.97,0.00019855,2]
[346248059,1734813054096,-500.0,0.00019855,2]
[346248060,1734813054106,-500.0,0.00019855,2]
[346248061,1734813054115,-549.24462815,0.00019855,2]
[346248062,1734813054124,-500.0,0.00019855,2]
[346248063,1734813054133,-500.0,0.00019855,2]
[346248064,1734813054143,-486.16037409,0.00019855,2]
[346248065,1734813054152,-500.0,0.00019855,2]
[346248066,1734813054162,-500.0,0.00019855,2]
[346248067,1734813054173,-500.0,0.00019855,2]
[346248068,1734813054184,-500.0,0.00019855,2]
[346248069,1734813054194,-500.0,0.00019855,2]
[346248070,1734813054203,-500.0,0.00019855,2]
[346248071,1734813054213,-512.38256132,0.00019855,2]
[346248072,1734813054224,-500.0,0.00019855,2]
[346248073,1734813054233,-500.0,0.00019855,2]
[346248074,1734813054242,-500.0,0.00019855,2]
[346248075,1734813054252,-500.0,0.00019855,2]
[346248076,1734813054261,-500.0,0.00019855,2]
[346248077,1734813054271,-500.0,0.00019855,2]
[346248078,1734813054280,-500.0,0.00019855,2]
[346248079,1734813054289,-500.0,0.00019855,2]
[346248080,1734813054298,-500.0,0.00019855,2]
[346248081,1734813054307,-500.0,0.00019855,2]
[346248082,1734813054379,-500.0,0.00019855,2]
[346248083,1734813054389,-500.0,0.00019855,2]
[346248084,1734813054402,-500.0,0.00019855,2]
[346248085,1734813054412,-500.0,0.00019855,2]
[346248086,1734813054421,-500.0,0.00019855,2]
[346248087,1734813054430,-500.0,0.00019855,2]
[346248088,1734813054439,-500.0,0.00019855,2]
[346248089,1734813054448,-500.0,0.00019855,2]
[346248090,1734813054457,-500.0,0.00019855,2]
[346248091,1734813054466,-500.0,0.00019855,2]
[346248092,1734813054476,-500.0,0.00019855,2]
[346248093,1734813054485,-500.0,0.00019855,2]
[346248094,1734813054495,-500.0,0.00019855,2]
[346248095,1734813054503,-500.0,0.00019855,2]
[346248096,1734813054513,-500.0,0.00019855,2]
[346248097,1734813054522,-502.3679085,0.00019855,2]
[346248098,1734813054531,-500.0,0.00019855,2]
[346248099,1734813054541,-500.0,0.00019855,2]
[346248100,1734813054550,-491.27201369,0.00019855,2]
[346248101,1734813054560,-500.0,0.00019855,2]
[346248102,1734813054568,-500.0,0.00019855,2]
[346248103,1734813054578,-500.0,0.00019855,2]
[346248104,1734813054587,-500.0,0.00019855,2]
[346248105,1734813054596,-500.0,0.00019855,2]
[346248106,1734813054607,-500.0,0.00019855,2]
[346248107,1734813054617,-500.0,0.00019855,2]
[346248108,1734813054626,-500.0,0.00019855,2]
[346248109,1734813054635,-500.0,0.00019855,2]
[346248110,1734813054645,-500.0,0.00019855,2]
[346248111,1734813054654,-500.0,0.00019855,2]
[346248112,1734813054663,-500.0,0.00019855,2]
[346248113,1734813054672,-500.0,0.00019855,2]
[346248114,1734813054682,-500.0,0.00019855,2]
[346248115,1734813054691,-500.0,0.00019855,2]
[346248116,1734813054701,-500.0,0.00019855,2]
[346248117,1734813054711,-500.0,0.00019855,2]
[346248118,1734813054720,-500.0,0.00019855,2]
[346248119,1734813054729,-435.91832901,0.00019855,2]
[346248120,1734813054739,-500.0,0.00019855,2]
[346248121,1734813054749,-500.0,0.00019855,2]
[346248122,1734813054768,-731.37,0.00019855,2]
[346248123,1734813054788,-965.96,0.00019855,2]
[346248124,1734813054798,-500.0,0.00019855,2]
[346248125,1734813054808,-1124.07,0.00019855,2]
[346248126,1734813054818,-609.05,0.00019855,2]
[346248127,1734813054828,-500.0,0.00019855,2]
[346248128,1734813054837,-500.0,0.00019855,2]
[346248129,1734813054847,-810.63,0.00019855,2]
[346248130,1734813054859,-890.32,0.00019855,2]
[346248131,1734813054868,-500.0,0.00019855,2]
[346248132,1734813054877,-612.17,0.00019855,2]
[346248133,1734813054886,-500.0,0.00019855,2]
[346248134,1734813054896,-500.0,0.00019855,2]
[346248135,1734813054905,-500.0,0.00019855,2]
[346248136,1734813054915,-500.0,0.00019855,2]
[346248137,1734813054924,-500.0,0.00019855,2]
[346248138,1734813054933,-609.5743587,0.00019855,2]
[346248139,1734813054943,-500.0,0.00019855,2]
[346248140,1734813054952,-1020.93,0.00019855,2]
[346248141,1734813054961,-535.0,0.00019855,2]
[346248142,1734813054970,-613.84,0.00019855,2]